bitfinex/quotes_ETHUSD_20241009
["timestamp","ask_amount","ask_price","bid_price","bid_amount"]
[1728466379126,4.105,2436.1,2435.8,0.8263]
[1728466379838,8.21,2436.1,2435.8,0.8263]
[1728466380044,4.105,2436.1,2435.8,0.8263]
[1728466380852,8.21002,2436.1,2435.8,0.8263]
[1728466381265,4.105,2436.1,2435.8,0.8263]
[1728466381740,4.105,2436.1,2435.8,2.57631177]
[1728466381934,4.105,2436.1,2435.8,3.31068316]
[1728466384250,0.8213,2436.1,2435.6,0.7975]
[1728466384442,4.10535,2435.9,2435.4,9.66840177]
[1728466384787,4.10513,2436.0,2435.7,0.8123]
[1728466384986,4.10527,2435.9,2435.7,0.8123]
[1728466385343,8.21064,2435.9,2435.7,0.8123]
[1728466385675,4.10527,2435.9,2435.6,1.75001177]
[1728466385973,4.10527,2435.9,2435.6,2.81266296]
[1728466387341,8.21065,2435.9,2435.6,2.81266296]
[1728466387582,4.10527,2435.9,2435.6,2.81266296]
[1728466395391,4.10514,2436.0,2435.6,2.81266296]
[1728466395596,4.10514,2436.0,2435.6,1.75001177]
[1728466402402,4.10529,2435.9,2435.6,1.75001177]
[1728466402605,0.8213,2436.1,2435.5,0.8037]
[1728466402815,8.85409177,2436.6,2435.2,2.51091177]
[1728466402816,4.10578,2435.6,2435.2,2.51091177]
[1728466403110,4.10578,2435.6,2435.3,3.0]
[1728466403277,4.10578,2435.6,2435.3,3.98187138]
[1728466403798,4.10578,2435.6,2435.4,1.75001177]
[1728466407013,4.10562,2435.7,2435.4,1.75001177]
[1728466407221,4.10562,2435.7,2435.4,2.8181418]
[1728466412012,4.91102,2435.8,2435.4,2.8181418]
[1728466412312,9.01654,2435.8,2435.4,2.8181418]
[1728466413395,9.01657,2435.8,2435.4,2.8181418]
[1728466413655,4.91102,2435.8,2435.5,0.7532]
[1728466413775,4.10522,2436.0,2435.6,2.10714595]
[1728466413971,4.10522,2436.0,2435.8,1.75001177]
[1728466414280,4.10492,2436.1,2435.8,1.75001177]
[1728466418303,4.10526,2435.9,2435.7,0.7532]
[1728466418513,4.10526,2435.9,2435.6,1.75001177]
[1728466418687,4.10526,2435.9,2435.6,2.00711295]
[1728466419304,4.10526,2435.9,2435.5,0.821]
[1728466419619,4.10607,2435.5,2435.3,0.821]
[1728466419818,4.10583,2435.6,2435.3,0.821]
[1728466421989,4.10575,2435.7,2435.3,1.50888938]
[1728466422207,4.10575,2435.7,2435.4,1.75001177]
[1728466425917,4.10581,2435.6,2435.4,1.75001177]
[1728466426126,4.10581,2435.6,2435.3,1.50888938]
[1728466429224,4.10595,2435.5,2435.3,0.821]
[1728466429593,4.10577,2435.6,2435.3,0.821]
[1728466436158,4.10594,2435.5,2435.3,0.821]
[1728466437313,4.10594,2435.5,2435.3,1.50888838]
[1728466438708,4.10577,2435.6,2435.3,1.50888838]
[1728466438945,4.10577,2435.6,2435.3,0.821]
[1728466440340,4.10568,2435.7,2435.3,0.821]
[1728466440533,4.10568,2435.7,2435.3,5.00936914]
[1728466440734,4.10568,2435.7,2435.4,0.67593809]
[1728466440938,4.10568,2435.7,2435.3,0.821]
[1728466442335,4.92846,2435.9,2435.4,1.75001177]
[1728466442336,4.10536,2435.9,2435.4,1.75001177]
[1728466442555,4.10536,2435.9,2435.5,0.7712]
[1728466443268,4.10536,2435.9,2435.6,1.75001177]
[1728466443462,4.10536,2435.9,2435.7,0.26033223]
[1728466443633,4.10509,2436.0,2435.8,0.7876]
[1728466444338,4.105,2436.1,2435.8,2.53761177]
[1728466444746,4.10523,2436.0,2435.8,2.53761177]
[1728466445073,4.105,2436.1,2435.6,2.53761177]
[1728466445074,8.21078,2435.9,2435.6,2.53761177]
[1728466445232,4.10539,2435.9,2435.6,2.53761177]
[1728466445433,4.10539,2435.9,2435.6,3.20197395]
[1728466446870,4.10503,2436.1,2435.8,1.75001177]
[1728466447035,4.10518,2436.0,2435.8,1.75001177]
[1728466448077,4.10509,2436.0,2435.8,1.75001177]
[1728466448280,4.105,2436.1,2435.8,2.07235916]
[1728466448778,4.10515,2436.0,2435.8,2.07235916]
[1728466448978,4.10525,2435.9,2435.8,1.75001177]
[1728466451218,4.9281,2436.1,2435.8,1.75001177]
[1728466451485,4.10509,2436.0,2435.8,1.75001177]
[1728466451875,0.8231,2436.1,2435.7,0.8091]
[1728466452092,4.10542,2435.8,2435.6,1.75001177]
[1728466453189,4.1051,2436.0,2435.6,1.75001177]
[1728466453391,4.1051,2436.0,2435.8,1.75001177]
[1728466453986,4.10531,2435.9,2435.8,1.75001177]
[1728466457524,4.1051,2436.0,2435.6,1.75001177]
[1728466457665,4.10543,2435.8,2435.6,1.75001177]
[1728466458893,4.10559,2435.7,2435.6,1.75001177]
[1728466459132,4.10559,2435.7,2435.5,2.52891177]
[1728466461125,4.10543,2435.8,2435.5,2.52891177]
[1728466461314,4.10543,2435.8,2435.5,2.78180295]
[1728466463098,4.10522,2436.0,2435.7,1.75001177]
[1728466463298,4.10522,2436.0,2435.8,0.8147]
[1728466465040,4.10483,2436.2,2435.8,0.8147]
[1728466465193,4.10493,2436.1,2435.8,1.48995756]
[1728466465392,4.10493,2436.1,2435.8,0.8147]
[1728466468915,4.10471,2436.3,2435.9,1.75001177]
[1728466469115,4.10471,2436.3,2435.9,2.41701695]
[1728466469337,4.10484,2436.2,2435.9,2.41701695]
[1728466469508,4.10484,2436.2,2435.9,1.75001177]
[1728466470793,4.10466,2436.3,2435.9,1.75001177]
[1728466471197,4.10466,2436.3,2436.0,0.7663]
[1728466471635,4.10466,2436.3,2436.1,1.75001177]
[1728466472627,0.7947,2436.5,2436.1,1.75001177]
[1728466472628,4.10442,2436.4,2436.1,1.75001177]
[1728466472827,8.20894,2436.4,2436.1,1.75001177]
[1728466473443,4.10442,2436.4,2436.1,1.75001177]
[1728466473779,4.10442,2436.4,2436.2,0.7589]
[1728466474619,4.10458,2436.3,2436.1,1.75001177]
[1728466475001,4.10442,2436.4,2436.1,1.75001177]
[1728466476609,4.10442,2436.4,2436.2,0.8239]
[1728466476809,4.10425,2436.5,2436.3,1.75001177]
[1728466477749,4.10441,2436.4,2436.2,0.8239]
[1728466477929,4.10458,2436.3,2436.1,2.41142695]
[1728466478135,8.20898,2436.4,2436.1,1.75001177]
[1728466478308,4.10441,2436.4,2436.1,1.75001177]
[1728466479753,4.10441,2436.4,2436.0,0.8239]
[1728466479754,4.10488,2436.2,2436.0,0.8239]
[1728466479925,4.10488,2436.2,2435.6,4.10564]
[1728466479926,4.10509,2436.0,2435.7,2.52171177]
[1728466480125,4.10509,2436.0,2435.7,3.20973607]
[1728466480346,4.10509,2436.0,2435.7,0.7717]
[1728466480661,4.10536,2435.9,2435.7,0.7717]
[1728466481576,4.10509,2436.0,2435.7,0.7717]
[1728466481873,8.21028,2436.0,2435.7,0.7717]
[1728466482071,4.10509,2436.0,2435.7,0.7717]
[1728466482757,4.10509,2436.0,2435.8,1.75001177]
[1728466483279,8.21032,2436.0,2435.8,1.75001177]
[1728466484152,4.10542,2435.8,2435.7,0.7717]
[1728466484361,8.21061,2435.9,2435.7,0.7717]
[1728466484537,4.10525,2435.9,2435.6,1.75001177]
[1728466484738,4.10542,2435.8,2435.6,1.75001177]
[1728466485287,4.10525,2435.9,2435.6,2.32466342]
[1728466485579,4.10543,2435.8,2435.6,2.32466342]
[1728466485735,4.10543,2435.8,2435.6,1.75001177]
[1728466486139,4.10525,2435.9,2435.6,1.75001177]
[1728466486371,8.21066,2435.9,2435.6,1.75001177]
[1728466486580,4.10525,2435.9,2435.6,1.75001177]
[1728466488746,4.10544,2435.8,2435.6,1.75001177]
[1728466489369,4.1057,2435.7,2435.4,2.54471177]
[1728466489608,4.10577,2435.6,2435.4,2.54471177]
[1728466489808,8.21168,2435.6,2435.4,1.45979918]
[1728466489965,4.10577,2435.6,2435.3,1.75001177]
[1728466490169,8.21168,2435.6,2435.3,2.00265295]
[1728466490829,4.10577,2435.6,2435.3,2.00265295]
[1728466491472,8.21166,2435.6,2435.3,2.00265295]
[1728466491769,4.10577,2435.6,2435.3,2.00265295]
[1728466501256,4.10595,2435.5,2435.3,0.25264118]
[1728466501554,4.10627,2435.3,2434.9,0.7729]
[1728466501762,4.10652,2435.2,2434.9,0.7729]
[1728466502254,4.10663,2435.1,2434.9,0.7729]
[1728466502414,1.75001177,2435.8,2435.0,0.20813455]
[1728466502415,4.10632,2435.3,2435.0,0.20813455]
[1728466502611,4.10621,2435.4,2435.1,1.75001177]
[1728466503151,8.21242,2435.4,2435.1,1.75001177]
[1728466503363,4.10629,2435.3,2435.1,1.75001177]
[1728466507844,4.10629,2435.3,2435.0,1.01623455]
[1728466508361,8.21266,2435.3,2435.0,1.01623455]
[1728466508969,4.10629,2435.3,2435.0,1.01623455]
[1728466510244,4.10603,2435.5,2435.2,1.75001177]
[1728466511173,4.10572,2435.7,2435.3,0.7544]
[1728466511371,4.10592,2435.6,2435.3,0.7544]
[1728466511985,4.10593,2435.5,2435.3,0.7544]
[1728466513151,4.10572,2435.7,2435.4,1.75001177]
[1728466514336,11.44833882,2435.9,2435.4,1.75001177]
[1728466514538,4.1055,2435.8,2435.5,0.753]
[1728466516883,4.10576,2435.6,2435.3,0.791]
[1728466517066,4.1061,2435.4,2435.2,1.75001177]
[1728466517938,4.1061,2435.4,2435.0,0.20813455]
[1728466517939,4.10643,2435.2,2435.0,0.20813455]
[1728466518290,4.10711,2434.8,2434.4,0.8283]
[1728466518453,4.10728,2434.7,2434.4,0.8283]
[1728466519032,4.10745,2434.6,2434.4,0.8283]
[1728466519319,8.21435,2434.8,2434.4,0.8283]
[1728466519521,8.21435,2434.8,2434.4,1.34290622]
[1728466519676,4.10711,2434.8,2434.4,1.34290622]
[1728466520023,4.10737,2434.7,2434.4,0.8283]
[1728466520817,4.10711,2434.8,2434.4,0.8283]
[1728466523085,4.10732,2434.7,2434.4,0.8283]
[1728466524127,4.10711,2434.8,2434.4,0.8283]
[1728466524879,8.21438,2434.8,2434.4,0.8283]
[1728466525109,4.10742,2434.7,2434.4,0.8283]
[1728466525777,4.10753,2434.6,2434.2,1.03197217]
[1728466525988,4.10753,2434.6,2434.2,1.84330524]
[1728466526755,4.86752,2434.7,2434.2,5.95141524]
[1728466527779,4.10742,2434.7,2434.2,5.95141524]
[1728466527915,4.10742,2434.7,2434.3,5.18101595]
[1728466530537,4.10742,2434.7,2434.5,3.79550857]
[1728466531251,4.86714,2434.9,2434.5,3.79550857]
[1728466531413,4.10713,2434.8,2434.5,3.79550857]
[1728466532218,4.10713,2434.8,2434.3,5.49333738]
[1728466532219,4.10713,2434.8,2434.3,9.28884595]
[1728466532418,4.10713,2434.8,2434.4,0.65253095]
[1728466534690,3.870151,2434.8,2434.4,0.65253095]
[1728466536163,4.10729,2434.7,2434.4,0.65253095]
[1728466537361,7.98668571,2435.3,2433.8,0.06165472]
[1728466537362,0.7803,2434.6,2433.8,0.06165472]
[1728466537562,12.31468571,2435.3,2433.7,0.8066]
[1728466537563,4.10851,2434.0,2433.7,1.0101368]
[1728466537782,4.10851,2434.0,2433.7,0.8066]
[1728466537965,4.10851,2434.0,2433.7,1.67773586]
[1728466538570,4.10851,2434.0,2433.7,0.8066]
[1728466539679,8.2171,2434.0,2433.7,0.8066]
[1728466539990,4.10851,2434.0,2433.7,4.60210857]
[1728466540985,4.88852,2434.2,2433.7,4.60210857]
[1728466541203,8.21645,2434.2,2433.7,4.60210857]
[1728466541363,4.10822,2434.2,2433.7,4.68427809]
[1728466541702,8.21643,2434.2,2433.7,4.68427809]
[1728466542161,4.10831,2434.1,2433.7,4.68427809]
[1728466542361,4.10831,2434.1,2433.8,0.90009584]
[1728466544606,0.7704,2434.5,2434.0,0.7848]
[1728466544607,4.10796,2434.3,2434.0,0.7848]
[1728466545579,4.1079,2434.4,2434.0,0.7848]
[1728466545779,8.2158,2434.4,2434.0,0.7848]
[1728466545971,4.1079,2434.4,2434.0,2.15458844]
[1728466549090,8.21579,2434.4,2434.0,2.15458844]
[1728466549293,4.10789,2434.4,2434.0,2.15458844]
[1728466551612,4.10789,2434.4,2434.0,2.23674809]
[1728466551819,4.10773,2434.5,2434.1,1.01408667]
[1728466552179,4.10785,2434.4,2434.1,1.01408667]
[1728466552383,4.10785,2434.4,2434.1,2.76606484]
[1728466554333,4.10805,2434.3,2434.0,0.7848]
[1728466557429,8.21549,2434.5,2434.1,1.75197817]
[1728466559747,4.10783,2434.4,2434.1,1.75197817]
[1728466561932,4.10804,2434.3,2434.0,0.7848]
[1728466562126,4.10804,2434.3,2434.0,1.44935482]
[1728466563017,8.21541,2434.5,2434.0,1.44935482]
[1728466565950,8.21536,2434.5,2434.0,1.44935482]
[1728466566654,4.10764,2434.5,2434.1,1.75197817]
[1728466566813,4.10764,2434.5,2434.1,2.48294347]
[1728466568569,4.10778,2434.4,2434.1,2.48294347]
[1728466568765,4.10778,2434.4,2434.0,1.44935482]
[1728466572456,4.10764,2434.5,2434.0,1.44935482]
[1728466572656,4.10764,2434.5,2434.0,5.55778482]
[1728466573175,4.10739,2434.7,2434.2,0.7835]
[1728466573377,4.1075,2434.6,2434.3,0.25354782]
[1728466573535,4.10766,2434.5,2434.2,0.7835]
[1728466573962,8.21508,2434.6,2434.2,0.7835]
[1728466574537,4.10762,2434.5,2434.2,0.7835]
[1728466576649,4.1075,2434.6,2434.2,0.7835]
[1728466576650,4.10749,2434.6,2434.2,0.7835]
[1728466576849,4.85926,2435.0,2434.6,0.8066]
[1728466576850,4.10731,2434.7,2434.6,0.8066]
[1728466577079,4.10745,2434.6,2434.4,0.8066]
[1728466578442,4.10761,2434.5,2434.1,1.75197817]
[1728466578650,4.10761,2434.5,2434.2,0.8004]
[1728466579646,4.10745,2434.6,2434.2,0.8004]
[1728466580760,4.10745,2434.6,2434.3,1.75197817]
[1728466580957,8.21444,2434.8,2434.4,0.8004]
[1728466581144,4.1072,2434.8,2434.5,1.75197817]
[1728466581699,0.8231,2434.9,2434.4,0.8004]
[1728466581700,4.10745,2434.6,2434.4,0.8004]
[1728466582292,4.10729,2434.7,2434.4,0.8004]
[1728466582753,8.21469,2434.7,2434.4,0.8004]
[1728466583260,4.10729,2434.7,2434.4,0.8004]
[1728466585093,4.10752,2434.6,2434.4,0.8004]
[1728466586093,4.10761,2434.5,2434.1,0.7931]
[1728466586387,4.10761,2434.5,2434.1,1.28326]
[1728466589856,4.10761,2434.5,2434.1,0.7931]
[1728466596173,8.21531,2434.5,2434.1,0.7931]
[1728466596367,4.10761,2434.5,2434.1,0.7931]
[1728466596591,8.21538,2434.5,2434.1,0.7931]
[1728466596807,4.10761,2434.5,2434.1,0.7931]
[1728466598276,4.1074,2434.7,2434.2,0.8167]
[1728466598621,4.10745,2434.6,2434.2,0.8167]
[1728466601924,4.90037,2434.9,2434.4,4.10771]
[1728466602092,8.21413,2434.9,2434.4,4.90551]
[1728466602287,4.10717,2434.8,2434.4,0.7978]
[1728466602618,4.10717,2434.8,2434.4,1.66792134]
[1728466604512,4.10717,2434.8,2434.5,1.75144406]
[1728466606921,4.10717,2434.8,2434.6,0.7754]
[1728466609219,4.10717,2434.8,2434.5,1.75144406]
[1728466610552,0.7796,2434.9,2434.4,0.7754]
[1728466610748,4.10746,2434.6,2434.4,0.7754]
[1728466611449,4.10746,2434.6,2434.3,1.75144406]
[1728466612318,4.10746,2434.6,2434.3,3.12327647]
[1728466614659,4.10729,2434.7,2434.3,3.12327647]
[1728466615717,0.7796,2434.9,2434.5,2.54824406]
[1728466615718,4.10695,2434.9,2434.5,2.54824406]
[1728466615918,8.21374,2435.0,2434.7,1.75144406]
[1728466616118,4.10686,2435.0,2434.7,1.75144406]
[1728466616725,8.21374,2435.0,2434.7,1.75144406]
[1728466619359,4.10686,2435.0,2434.7,1.75144406]
[1728466619567,4.10654,2435.2,2434.8,0.8201]
[1728466619737,4.10661,2435.1,2434.8,0.8201]
[1728466620429,4.10654,2435.2,2434.8,0.8201]
[1728466620672,4.10678,2435.0,2434.8,0.8201]
[1728466629148,4.10711,2434.8,2434.5,2.54424406]
[1728466629354,8.21438,2434.8,2434.5,2.54424406]
[1728466629788,4.10734,2434.7,2434.5,2.54424406]
[1728466629943,4.10711,2434.8,2434.3,1.75144406]
[1728466629944,4.10755,2434.6,2434.3,1.75144406]
[1728466630504,0.7779,2434.5,2433.8,0.7928]
[1728466630697,4.10804,2434.3,2433.9,2.24161106]
[1728466630979,4.10778,2434.4,2433.9,6.35023106]
[1728466631355,4.10778,2434.4,2434.1,1.75144406]
[1728466632343,4.10797,2434.3,2433.9,0.20540845]
[1728466632545,4.10797,2434.3,2434.0,1.75144406]
[1728466633670,8.99334,2434.5,2434.0,1.75144406]
[1728466633845,8.99329,2434.5,2434.0,1.75144406]
[1728466634153,4.10769,2434.5,2434.2,1.75144406]
[1728466634357,4.10752,2434.6,2434.2,1.75144406]
[1728466634543,4.10746,2434.6,2434.4,1.75144406]
[1728466635488,4.10746,2434.6,2434.2,1.75144406]
[1728466638780,4.1078,2434.4,2434.1,0.7972]
[1728466639083,4.1078,2434.4,2434.2,1.75144406]
[1728466641654,4.10778,2434.5,2434.2,1.75144406]
[1728466641972,4.10783,2434.4,2434.2,1.75144406]
[1728466645089,4.10778,2434.5,2434.2,1.75144406]
[1728466645268,4.10778,2434.4,2434.2,1.75144406]
[1728466645464,4.10813,2434.2,2434.0,1.75144406]
[1728466645790,8.21638,2434.2,2433.9,1.75144406]
[1728466645988,4.10813,2434.2,2433.9,1.75144406]
[1728466646651,4.89949,2434.4,2434.1,1.75144406]
[1728466646884,4.10763,2434.5,2434.3,1.75144406]
[1728466647488,4.10778,2434.4,2434.3,1.75144406]
[1728466647734,4.10778,2434.4,2434.1,0.7807]
[1728466647735,4.10778,2434.4,2434.1,2.53214406]
[1728466647899,8.21573,2434.4,2434.1,2.53214406]
[1728466648232,4.10778,2434.4,2434.1,2.53214406]
[1728466648738,4.88948,2434.6,2434.1,3.19621847]
[1728466648888,4.10758,2434.6,2434.3,1.75144406]
[1728466652422,4.10753,2434.6,2434.3,1.75144406]
[1728466652747,4.1073,2434.7,2434.3,1.75144406]
[1728466652947,4.10755,2434.6,2434.3,1.75144406]
[1728466653609,4.1073,2434.7,2434.4,0.7814]
[1728466653813,4.10745,2434.6,2434.4,0.7814]
[1728466654012,4.1073,2434.7,2434.4,0.7814]
[1728466654240,0.8139,2434.9,2434.1,2.53284406]
[1728466654241,4.10778,2434.4,2434.1,2.53284406]
[1728466654644,4.10843,2434.1,2433.9,0.8018]
[1728466654951,4.10812,2434.2,2433.9,0.8018]
[1728466655155,4.10812,2434.2,2433.9,2.55324406]
[1728466655525,4.10831,2434.1,2433.9,2.55324406]
[1728466655834,4.10812,2434.2,2433.9,2.55324406]
[1728466656715,4.10832,2434.1,2433.9,2.55324406]
[1728466659957,4.10812,2434.2,2433.9,2.55324406]
[1728466660127,8.21635,2434.2,2433.9,2.55324406]
[1728466660455,4.10812,2434.2,2433.9,2.55324406]
[1728466661261,4.10812,2434.2,2433.9,2.55186367]
[1728466664831,4.10829,2434.1,2433.9,2.55186367]
[1728466665342,4.10812,2434.2,2433.9,2.55186367]
[1728466678266,9.02899,2434.2,2433.9,1.75144406]
[1728466678574,4.92072,2434.2,2433.9,1.75144406]
[1728466680332,0.8126,2434.2,2433.9,1.75144406]
[1728466680538,0.7522,2434.5,2434.1,1.75144406]
[1728466680735,4.85997,2434.5,2434.3,1.75144406]
[1728466680937,4.10796,2434.3,2434.1,1.75144406]
[1728466681878,4.10773,2434.5,2434.2,0.8094]
[1728466682038,4.10773,2434.5,2434.3,1.75144406]
[1728466684250,4.10739,2434.7,2434.3,1.75144406]
[1728466684472,4.10739,2434.7,2434.6,1.75144406]
[1728466684658,4.10702,2434.9,2434.6,1.75144406]
[1728466685294,8.21412,2434.9,2434.6,1.75144406]
[1728466685667,4.10711,2434.8,2434.5,0.7637]
[1728466685866,4.10711,2434.8,2434.5,2.51514406]
[1728466686070,4.10728,2434.7,2434.5,1.75144406]
[1728466686477,4.10711,2434.8,2434.5,1.75144406]
[1728466686660,4.10704,2434.9,2434.7,1.75144406]
[1728466687673,4.10687,2435.0,2434.7,1.75144406]
[1728466688168,4.10694,2434.9,2434.7,1.75144406]
[1728466695309,4.10694,2434.9,2434.6,0.7512]
[1728466696766,8.21379,2435.0,2434.6,0.7512]
[1728466696969,4.10697,2434.9,2434.6,0.7512]
[1728466697882,8.21378,2435.0,2434.6,0.7512]
[1728466698622,4.90492,2434.8,2434.3,3.7659]
[1728466698788,4.90492,2434.8,2434.3,5.51734406]
[1728466698984,4.10732,2434.7,2434.3,5.51734406]
[1728466699176,0.7977,2434.8,2434.5,1.75144406]
[1728466699374,4.10695,2434.9,2434.5,1.75144406]
[1728466700308,4.10728,2434.7,2434.5,1.75144406]
[1728466701487,8.214,2434.9,2434.5,1.75144406]
[1728466701689,4.10695,2434.9,2434.5,1.75144406]
[1728466701884,4.10695,2434.9,2434.6,0.7873]
[1728466706723,4.10673,2435.1,2434.7,1.75144406]
[1728466706884,4.10681,2435.0,2434.7,1.75144406]
[1728466708717,4.10668,2435.1,2434.7,1.75144406]
[1728466711293,4.10679,2435.0,2434.7,1.75144406]
[1728466711894,4.10679,2435.0,2434.6,0.7873]
[1728466711895,4.10696,2434.9,2434.6,0.7873]
[1728466712833,4.10679,2435.0,2434.6,0.7873]
[1728466715733,9.02294,2435.2,2434.6,4.8947]
[1728466715946,4.10666,2435.1,2434.6,4.8947]
[1728466717403,4.86615,2434.9,2434.4,6.69074406]
[1728466718704,4.86615,2434.9,2434.4,0.8316]
[1728466718705,4.10721,2434.8,2434.4,0.8316]
[1728466718924,4.86604,2434.9,2434.4,0.8316]
[1728466719243,4.10678,2435.0,2434.5,5.85903406]
[1728466719656,8.21367,2435.0,2434.5,5.85903406]
[1728466719809,4.10678,2435.0,2434.5,5.85903406]
[1728466720152,8.2137,2435.0,2434.5,5.85903406]
[1728466723352,4.10678,2435.0,2434.6,0.8325]
[1728466724621,8.21365,2435.0,2434.6,0.8325]
[1728466725842,4.10678,2435.0,2434.6,0.8325]
[1728466726866,8.21365,2435.0,2434.6,0.8325]
[1728466727940,4.10678,2435.0,2434.6,0.8325]
[1728466728142,8.21364,2435.0,2434.6,0.8325]
[1728466731267,4.10678,2435.0,2434.6,0.8325]
[1728466731475,8.21367,2435.0,2434.6,0.8325]
[1728466732574,4.10678,2435.0,2434.6,0.8325]
[1728466732745,8.2137,2435.0,2434.6,0.8325]
[1728466733436,4.10678,2435.0,2434.7,1.75144406]
[1728466733958,8.21366,2435.0,2434.7,1.75144406]
[1728466735374,4.10678,2435.0,2434.7,1.75144406]
[1728466735778,8.21367,2435.0,2434.7,1.75144406]
[1728466736367,4.10678,2435.0,2434.7,1.75144406]
[1728466737023,8.21369,2435.0,2434.7,1.75144406]
[1728466737443,4.10678,2435.0,2434.7,1.75144406]
[1728466737836,4.10698,2434.9,2434.7,1.75144406]
[1728466738875,4.10678,2435.0,2434.7,1.75144406]
[1728466738876,4.10678,2435.0,2434.8,0.787]
[1728466739379,4.10694,2434.9,2434.8,0.787]
[1728466740477,4.10678,2435.0,2434.8,0.787]
[1728466740692,4.91925,2435.8,2435.0,7.10663]
[1728466740979,11.44817882,2436.0,2435.7,2.53074406]
[1728466741291,4.1052,2436.0,2435.9,1.75144406]
[1728466745591,4.1052,2436.0,2435.7,2.53074406]
[1728466745791,4.10537,2435.9,2435.7,2.53074406]
[1728466746089,4.10542,2435.8,2435.7,1.75144406]
[1728466754326,4.10527,2435.9,2435.7,1.75144406]
[1728466756415,4.10527,2435.9,2435.8,0.8208]
[1728466757694,4.10502,2436.1,2435.8,0.8208]
[1728466757695,4.10509,2436.0,2435.8,0.8208]
[1728466761870,4.10509,2436.0,2435.7,1.75144406]
[1728466761871,4.10502,2436.1,2435.7,1.75144406]
[1728466762046,4.10536,2435.9,2435.7,1.75144406]
[1728466763483,4.10542,2435.8,2435.7,1.75144406]
[1728466763685,4.10542,2435.8,2435.6,0.8023]
[1728466765894,4.10526,2435.9,2435.7,1.75144406]
[1728466766256,8.21039,2436.0,2435.7,1.75144406]
[1728466766497,4.10518,2436.0,2435.8,0.8009]
[1728466766961,4.10525,2435.9,2435.8,0.8009]
[1728466768651,4.10506,2436.1,2435.8,0.8009]
[1728466769463,4.10513,2436.0,2435.8,0.8009]
[1728466771698,4.10525,2435.9,2435.8,0.8009]
[1728466774099,4.10525,2435.9,2435.7,1.75144406]
[1728466774806,4.1051,2436.0,2435.7,1.75144406]
[1728466775776,4.10528,2435.9,2435.7,1.75144406]
[1728466776005,4.1051,2436.0,2435.7,1.75144406]
[1728466777309,4.1051,2436.0,2435.6,0.7639]
[1728466777507,4.1051,2436.0,2435.8,1.75144406]
[1728466781183,0.20539326,2436.8,2436.2,0.7576]
[1728466781506,0.42904028,2437.4,2436.6,1.75144406]
[1728466781507,0.7771,2437.0,2436.6,1.75144406]
[1728466781680,0.7771,2437.0,2436.8,1.75144406]
[1728466782190,4.88056,2437.0,2436.8,1.75144406]
[1728466782396,4.10357,2436.9,2436.6,1.75144406]
[1728466782618,8.20723,2436.9,2436.6,1.75144406]
[1728466782931,4.10357,2436.9,2436.6,1.75144406]
[1728466784429,0.7771,2437.0,2436.6,1.75144406]
[1728466785020,4.88051,2437.0,2436.6,1.75144406]
[1728466785334,7.10247,2437.6,2436.8,1.75144406]
[1728466785631,4.10324,2437.1,2437.0,1.75144406]
[1728466786492,4.10324,2437.1,2436.8,2.53934406]
[1728466786693,4.10319,2437.2,2436.8,2.53934406]
[1728466786931,4.10306,2437.3,2436.8,2.53934406]
[1728466788133,4.10324,2437.1,2436.8,2.53934406]
[1728466792066,8.20662,2437.1,2436.8,2.53934406]
[1728466792249,4.10324,2437.1,2436.8,2.53934406]
[1728466793320,4.10343,2437.0,2436.8,2.53934406]
[1728466793829,4.10324,2437.1,2436.8,2.53934406]
[1728466794056,8.20663,2437.1,2436.8,2.53934406]
[1728466794436,4.10324,2437.1,2436.8,2.53934406]
[1728466794637,4.10352,2437.0,2436.8,2.53934406]
[1728466795748,4.10357,2436.9,2436.8,1.75144406]
[1728466796061,4.10383,2436.8,2436.5,1.75144406]
[1728466796765,4.10357,2436.9,2436.5,1.75144406]
[1728466797267,4.1038,2436.8,2436.5,1.75144406]
[1728466797622,4.10391,2436.7,2436.5,1.75144406]
[1728466797870,4.10391,2436.7,2436.2,0.20692319]
[1728466798070,4.10439,2436.5,2436.2,1.75144406]
[1728466798227,4.10436,2436.5,2436.2,1.75144406]
[1728466798968,4.88948,2436.6,2436.2,1.75144406]
[1728466799130,4.88948,2436.6,2436.1,4.10491]
[1728466799131,4.88948,2436.6,2436.4,1.75144406]
[1728466799676,4.10408,2436.6,2436.4,1.75144406]
[1728466800324,4.10403,2436.7,2436.4,1.75144406]
[1728466800669,4.10401,2436.7,2436.4,1.75144406]
[1728466800824,4.10411,2436.6,2436.4,1.75144406]
[1728466801575,8.20805,2436.7,2436.4,1.75144406]
[1728466802145,4.1041,2436.6,2436.4,1.75144406]
[1728466803180,4.10424,2436.5,2436.4,1.75144406]
[1728466803680,4.10424,2436.5,2436.3,0.7772]
[1728466805285,4.10408,2436.6,2436.3,0.7772]
[1728466806071,4.10401,2436.7,2436.4,1.75144406]
[1728466806289,4.10368,2436.9,2436.6,1.75144406]
[1728466806584,4.10368,2436.9,2436.8,1.75144406]
[1728466807058,4.10341,2437.0,2436.8,1.75144406]
[1728466807256,11.44596882,2437.3,2436.9,1.75144406]
[1728466807456,4.10299,2437.3,2437.1,1.75144406]
[1728466807669,8.20602,2437.3,2437.1,1.75144406]
[1728466807874,4.10299,2437.3,2437.1,1.75144406]
[1728466809455,8.20598,2437.3,2437.1,1.75144406]
[1728466809655,4.10264,2437.5,2437.1,1.75144406]
[1728466809857,4.10264,2437.5,2437.4,1.75144406]
[1728466811851,4.10264,2437.5,2437.0,0.756]
[1728466811852,4.10284,2437.4,2437.2,1.75144406]
[1728466815191,4.1029,2437.3,2437.2,1.75144406]
[1728466817587,0.7791,2437.7,2437.0,0.756]
[1728466817793,4.10323,2437.1,2436.9,1.75144406]
[1728466820601,4.10286,2437.4,2436.9,1.75144406]
[1728466820802,4.10306,2437.3,2436.9,1.75144406]
[1728466821396,4.10317,2437.2,2436.9,1.75144406]
[1728466823340,8.20637,2437.2,2436.9,1.75144406]
[1728466823523,4.10325,2437.1,2436.9,1.75144406]
[1728466824946,4.10301,2437.3,2436.9,1.75144406]